{"text_format":"3","workbook":"xlsx","n_sheets":1,"sheets":["Gider Bütçesi"],"not_rendered":{"charts":2,"defined_names":3},"read":"whole","date_system":"1900"}

{"sheet":"Gider Bütçesi","index":0,"n_rows":47,"n_cols":7,"rows_kept":47,"merged":[[0,1,0,4],[0,5,0,6],[16,1,16,6],[49,1,49,6]]}
[null,"Gider Bütçesi",{"$nulls":3},"CONTOSO, 2013"]
[]
[]
[null," PERSONEL BÜTÇESİ"]
{"$rows_empty":7}
[null,"DURUM","PERSONEL","BÜTÇE","GERÇEK","FARK (ABD Doları)","FARK (%)"]
[null,{"$f":"IFERROR(tblKişiselGiderler_1[[#This Row],[GERÇEK]]/tblKişiselGiderler_1[[#This Row],[BÜTÇE]],\"\")","v":{"v":1.13,"d":"$1.13"}},"İş Yeri",{"v":500,"d":"500.00 TL"},{"v":565,"d":"565.00 TL"},{"$f":"tblKişiselGiderler_1[[#This Row],[BÜTÇE]]-tblKişiselGiderler_1[[#This Row],[GERÇEK]]","v":{"v":-65,"d":"-65.00 TL"}},{"$f":"IFERROR(tblKişiselGiderler_1[FARK (ABD Doları)]/tblKişiselGiderler_1[BÜTÇE],\"\")","v":{"v":-0.13,"d":"-13%"}}]
[null,{"$f":"IFERROR(tblKişiselGiderler_1[[#This Row],[GERÇEK]]/tblKişiselGiderler_1[[#This Row],[BÜTÇE]],\"\")","v":{"v":1.2,"d":"$1.20"}},"Mağaza",{"v":125,"d":"125.00 TL"},{"v":150,"d":"150.00 TL"},{"$f":"tblKişiselGiderler_1[[#This Row],[BÜTÇE]]-tblKişiselGiderler_1[[#This Row],[GERÇEK]]","v":{"v":-25,"d":"-25.00 TL"}},{"$f":"IFERROR(tblKişiselGiderler_1[FARK (ABD Doları)]/tblKişiselGiderler_1[BÜTÇE],\"\")","v":{"v":-0.2,"d":"-20%"}}]
[null,{"$f":"IFERROR(tblKişiselGiderler_1[[#This Row],[GERÇEK]]/tblKişiselGiderler_1[[#This Row],[BÜTÇE]],\"\")","v":{"v":1,"d":"$1.00"}},"Satış Elemanları",{"v":100,"d":"100.00 TL"},{"v":100,"d":"100.00 TL"},{"$f":"tblKişiselGiderler_1[[#This Row],[BÜTÇE]]-tblKişiselGiderler_1[[#This Row],[GERÇEK]]","v":{"v":0,"d":"0.00 TL"}},{"$f":"IFERROR(tblKişiselGiderler_1[FARK (ABD Doları)]/tblKişiselGiderler_1[BÜTÇE],\"\")","v":{"v":0,"d":"0%"}}]
[null,{"$f":"IFERROR(tblKişiselGiderler_1[[#This Row],[GERÇEK]]/tblKişiselGiderler_1[[#This Row],[BÜTÇE]],\"\")","v":{"v":0.9,"d":"$0.90"}},"Diğer",{"v":100,"d":"100.00 TL"},{"v":90,"d":"90.00 TL"},{"$f":"tblKişiselGiderler_1[[#This Row],[BÜTÇE]]-tblKişiselGiderler_1[[#This Row],[GERÇEK]]","v":{"v":10,"d":"10.00 TL"}},{"$f":"IFERROR(tblKişiselGiderler_1[FARK (ABD Doları)]/tblKişiselGiderler_1[BÜTÇE],\"\")","v":{"v":0.1,"d":"10%"}}]
[]
[]
[null," İŞLETİM BÜTÇESİ"]
{"$rows_empty":7}
[null,"DURUM","İŞLETİM","BÜTÇE","GERÇEK","FARK (ABD Doları)","FARK (%)"]
[null,{"$f":"IFERROR(tblİşletimGiderleri[[#This Row],[GERÇEK]]/tblİşletimGiderleri[[#This Row],[BÜTÇE]],\"\")","v":{"v":0.98,"d":"$0.98"}},"Reklam",{"v":250,"d":"250.00 TL"},{"v":245,"d":"245.00 TL"},{"$f":"tblİşletimGiderleri[[#This Row],[BÜTÇE]]-tblİşletimGiderleri[[#This Row],[GERÇEK]]","v":{"v":5,"d":"5.00 TL"}},{"$f":"IFERROR(tblİşletimGiderleri[[#This Row],[FARK (ABD Doları)]]/tblİşletimGiderleri[[#This Row],[BÜTÇE]],\"\")","v":{"v":0.02,"d":"2%"}}]
[null,{"$f":"IFERROR(tblİşletimGiderleri[[#This Row],[GERÇEK]]/tblİşletimGiderleri[[#This Row],[BÜTÇE]],\"\")","v":{"v":1.2,"d":"$1.20"}},"Borçlar",{"v":125,"d":"125.00 TL"},{"v":150,"d":"150.00 TL"},{"$f":"tblİşletimGiderleri[[#This Row],[BÜTÇE]]-tblİşletimGiderleri[[#This Row],[GERÇEK]]","v":{"v":-25,"d":"-25.00 TL"}},{"$f":"IFERROR(tblİşletimGiderleri[[#This Row],[FARK (ABD Doları)]]/tblİşletimGiderleri[[#This Row],[BÜTÇE]],\"\")","v":{"v":-0.2,"d":"-20%"}}]
[null,{"$f":"IFERROR(tblİşletimGiderleri[[#This Row],[GERÇEK]]/tblİşletimGiderleri[[#This Row],[BÜTÇE]],\"\")","v":{"v":1,"d":"$1.00"}},"Avantajlar",{"v":100,"d":"100.00 TL"},{"v":100,"d":"100.00 TL"},{"$f":"tblİşletimGiderleri[[#This Row],[BÜTÇE]]-tblİşletimGiderleri[[#This Row],[GERÇEK]]","v":{"v":0,"d":"0.00 TL"}},{"$f":"IFERROR(tblİşletimGiderleri[[#This Row],[FARK (ABD Doları)]]/tblİşletimGiderleri[[#This Row],[BÜTÇE]],\"\")","v":{"v":0,"d":"0%"}}]
[null,{"$f":"IFERROR(tblİşletimGiderleri[[#This Row],[GERÇEK]]/tblİşletimGiderleri[[#This Row],[BÜTÇE]],\"\")","v":{"v":0.9,"d":"$0.90"}},"Sarf malzemeleri",{"v":100,"d":"100.00 TL"},{"v":90,"d":"90.00 TL"},{"$f":"tblİşletimGiderleri[[#This Row],[BÜTÇE]]-tblİşletimGiderleri[[#This Row],[GERÇEK]]","v":{"v":10,"d":"10.00 TL"}},{"$f":"IFERROR(tblİşletimGiderleri[[#This Row],[FARK (ABD Doları)]]/tblİşletimGiderleri[[#This Row],[BÜTÇE]],\"\")","v":{"v":0.1,"d":"10%"}}]
[null,{"$f":"IFERROR(tblİşletimGiderleri[[#This Row],[GERÇEK]]/tblİşletimGiderleri[[#This Row],[BÜTÇE]],\"\")","v":""},"Posta",null,null,{"$f":"tblİşletimGiderleri[[#This Row],[BÜTÇE]]-tblİşletimGiderleri[[#This Row],[GERÇEK]]","v":{"v":0,"d":"0.00 TL"}},{"$f":"IFERROR(tblİşletimGiderleri[[#This Row],[FARK (ABD Doları)]]/tblİşletimGiderleri[[#This Row],[BÜTÇE]],\"\")","v":""}]
[null,{"$f":"IFERROR(tblİşletimGiderleri[[#This Row],[GERÇEK]]/tblİşletimGiderleri[[#This Row],[BÜTÇE]],\"\")","v":""},"Kira ya da ev kredisi",null,null,{"$f":"tblİşletimGiderleri[[#This Row],[BÜTÇE]]-tblİşletimGiderleri[[#This Row],[GERÇEK]]","v":{"v":0,"d":"0.00 TL"}},{"$f":"IFERROR(tblİşletimGiderleri[[#This Row],[FARK (ABD Doları)]]/tblİşletimGiderleri[[#This Row],[BÜTÇE]],\"\")","v":""}]
[null,{"$f":"IFERROR(tblİşletimGiderleri[[#This Row],[GERÇEK]]/tblİşletimGiderleri[[#This Row],[BÜTÇE]],\"\")","v":""},"Satış giderleri",null,null,{"$f":"tblİşletimGiderleri[[#This Row],[BÜTÇE]]-tblİşletimGiderleri[[#This Row],[GERÇEK]]","v":{"v":0,"d":"0.00 TL"}},{"$f":"IFERROR(tblİşletimGiderleri[[#This Row],[FARK (ABD Doları)]]/tblİşletimGiderleri[[#This Row],[BÜTÇE]],\"\")","v":""}]
[null,{"$f":"IFERROR(tblİşletimGiderleri[[#This Row],[GERÇEK]]/tblİşletimGiderleri[[#This Row],[BÜTÇE]],\"\")","v":""},"Vergiler",null,null,{"$f":"tblİşletimGiderleri[[#This Row],[BÜTÇE]]-tblİşletimGiderleri[[#This Row],[GERÇEK]]","v":{"v":0,"d":"0.00 TL"}},{"$f":"IFERROR(tblİşletimGiderleri[[#This Row],[FARK (ABD Doları)]]/tblİşletimGiderleri[[#This Row],[BÜTÇE]],\"\")","v":""}]
[null,{"$f":"IFERROR(tblİşletimGiderleri[[#This Row],[GERÇEK]]/tblİşletimGiderleri[[#This Row],[BÜTÇE]],\"\")","v":""},"Su - elektrik",null,null,{"$f":"tblİşletimGiderleri[[#This Row],[BÜTÇE]]-tblİşletimGiderleri[[#This Row],[GERÇEK]]","v":{"v":0,"d":"0.00 TL"}},{"$f":"IFERROR(tblİşletimGiderleri[[#This Row],[FARK (ABD Doları)]]/tblİşletimGiderleri[[#This Row],[BÜTÇE]],\"\")","v":""}]
[null,{"$f":"IFERROR(tblİşletimGiderleri[[#This Row],[GERÇEK]]/tblİşletimGiderleri[[#This Row],[BÜTÇE]],\"\")","v":""},"Diğer",null,null,{"$f":"tblİşletimGiderleri[[#This Row],[BÜTÇE]]-tblİşletimGiderleri[[#This Row],[GERÇEK]]","v":{"v":0,"d":"0.00 TL"}},{"$f":"IFERROR(tblİşletimGiderleri[[#This Row],[FARK (ABD Doları)]]/tblİşletimGiderleri[[#This Row],[BÜTÇE]],\"\")","v":""}]
[null,{"$f":"IFERROR(tblİşletimGiderleri[[#This Row],[GERÇEK]]/tblİşletimGiderleri[[#This Row],[BÜTÇE]],\"\")","v":""},"Sigorta",null,null,{"$f":"tblİşletimGiderleri[[#This Row],[BÜTÇE]]-tblİşletimGiderleri[[#This Row],[GERÇEK]]","v":{"v":0,"d":"0.00 TL"}},{"$f":"IFERROR(tblİşletimGiderleri[[#This Row],[FARK (ABD Doları)]]/tblİşletimGiderleri[[#This Row],[BÜTÇE]],\"\")","v":""}]
[null,{"$f":"IFERROR(tblİşletimGiderleri[[#This Row],[GERÇEK]]/tblİşletimGiderleri[[#This Row],[BÜTÇE]],\"\")","v":""},"Faiz",null,null,{"$f":"tblİşletimGiderleri[[#This Row],[BÜTÇE]]-tblİşletimGiderleri[[#This Row],[GERÇEK]]","v":{"v":0,"d":"0.00 TL"}},{"$f":"IFERROR(tblİşletimGiderleri[[#This Row],[FARK (ABD Doları)]]/tblİşletimGiderleri[[#This Row],[BÜTÇE]],\"\")","v":""}]
[null,{"$f":"IFERROR(tblİşletimGiderleri[[#This Row],[GERÇEK]]/tblİşletimGiderleri[[#This Row],[BÜTÇE]],\"\")","v":""},"Telefon",null,null,{"$f":"tblİşletimGiderleri[[#This Row],[BÜTÇE]]-tblİşletimGiderleri[[#This Row],[GERÇEK]]","v":{"v":0,"d":"0.00 TL"}},{"$f":"IFERROR(tblİşletimGiderleri[[#This Row],[FARK (ABD Doları)]]/tblİşletimGiderleri[[#This Row],[BÜTÇE]],\"\")","v":""}]
[null,{"$f":"IFERROR(tblİşletimGiderleri[[#This Row],[GERÇEK]]/tblİşletimGiderleri[[#This Row],[BÜTÇE]],\"\")","v":""},"Bakım ve onarımlar",null,null,{"$f":"tblİşletimGiderleri[[#This Row],[BÜTÇE]]-tblİşletimGiderleri[[#This Row],[GERÇEK]]","v":{"v":0,"d":"0.00 TL"}},{"$f":"IFERROR(tblİşletimGiderleri[[#This Row],[FARK (ABD Doları)]]/tblİşletimGiderleri[[#This Row],[BÜTÇE]],\"\")","v":""}]
[null,{"$f":"IFERROR(tblİşletimGiderleri[[#This Row],[GERÇEK]]/tblİşletimGiderleri[[#This Row],[BÜTÇE]],\"\")","v":""},"Yasal ücretler",null,null,{"$f":"tblİşletimGiderleri[[#This Row],[BÜTÇE]]-tblİşletimGiderleri[[#This Row],[GERÇEK]]","v":{"v":0,"d":"0.00 TL"}},{"$f":"IFERROR(tblİşletimGiderleri[[#This Row],[FARK (ABD Doları)]]/tblİşletimGiderleri[[#This Row],[BÜTÇE]],\"\")","v":""}]
[null,{"$f":"IFERROR(tblİşletimGiderleri[[#This Row],[GERÇEK]]/tblİşletimGiderleri[[#This Row],[BÜTÇE]],\"\")","v":""},"Amortisman",null,null,{"$f":"tblİşletimGiderleri[[#This Row],[BÜTÇE]]-tblİşletimGiderleri[[#This Row],[GERÇEK]]","v":{"v":0,"d":"0.00 TL"}},{"$f":"IFERROR(tblİşletimGiderleri[[#This Row],[FARK (ABD Doları)]]/tblİşletimGiderleri[[#This Row],[BÜTÇE]],\"\")","v":""}]
[null,{"$f":"IFERROR(tblİşletimGiderleri[[#This Row],[GERÇEK]]/tblİşletimGiderleri[[#This Row],[BÜTÇE]],\"\")","v":""},"Gönderim ücretleri",null,null,{"$f":"tblİşletimGiderleri[[#This Row],[BÜTÇE]]-tblİşletimGiderleri[[#This Row],[GERÇEK]]","v":{"v":0,"d":"0.00 TL"}},{"$f":"IFERROR(tblİşletimGiderleri[[#This Row],[FARK (ABD Doları)]]/tblİşletimGiderleri[[#This Row],[BÜTÇE]],\"\")","v":""}]
[null,{"$f":"IFERROR(tblİşletimGiderleri[[#This Row],[GERÇEK]]/tblİşletimGiderleri[[#This Row],[BÜTÇE]],\"\")","v":""},"Depolama",null,null,{"$f":"tblİşletimGiderleri[[#This Row],[BÜTÇE]]-tblİşletimGiderleri[[#This Row],[GERÇEK]]","v":{"v":0,"d":"0.00 TL"}},{"$f":"IFERROR(tblİşletimGiderleri[[#This Row],[FARK (ABD Doları)]]/tblİşletimGiderleri[[#This Row],[BÜTÇE]],\"\")","v":""}]
[null,{"$f":"IFERROR(tblİşletimGiderleri[[#This Row],[GERÇEK]]/tblİşletimGiderleri[[#This Row],[BÜTÇE]],\"\")","v":""},"Diğer",null,null,{"$f":"tblİşletimGiderleri[[#This Row],[BÜTÇE]]-tblİşletimGiderleri[[#This Row],[GERÇEK]]","v":{"v":0,"d":"0.00 TL"}},{"$f":"IFERROR(tblİşletimGiderleri[[#This Row],[FARK (ABD Doları)]]/tblİşletimGiderleri[[#This Row],[BÜTÇE]],\"\")","v":""}]
[null,null,"Toplam Giderler",{"$f":"SUBTOTAL(109,tblİşletimGiderleri[BÜTÇE],tblKişiselGiderler_1[BÜTÇE])","v":{"v":1400,"d":"1,400.00 TL"}},{"$f":"SUBTOTAL(109,tblİşletimGiderleri[GERÇEK],tblKişiselGiderler_1[GERÇEK])","v":{"v":1490,"d":"1,490.00 TL"}},{"$f":"SUBTOTAL(109,tblİşletimGiderleri[FARK (ABD Doları)],tblKişiselGiderler_1[FARK (ABD Doları)])","v":{"v":-90,"d":"-90.00 TL"}},{"$f":"IFERROR(SUM(tblİşletimGiderleri[[#Totals],[FARK (ABD Doları)]]/tblİşletimGiderleri[[#Totals],[BÜTÇE]]),\"\")","v":{"v":-0.06428571428571428,"d":"-6%"}}]